fUSD/lending_fUSD_20241109
["ID","MTS","AMOUNT","RATE_DAILY","PERIOD"]
[341719981,1731127831769,-1923.23,0.00027227,2]
[341719982,1731127831778,-446.69,0.00027454,2]
[341719983,1731127831787,-1812.74,0.0002749,2]
[341719984,1731127831797,-1000.0,0.0002749,2]
[341719985,1731127831806,-500.0,0.00027497,2]
[341719986,1731127831815,-156.27,0.00027498,2]
[341719987,1731127831824,-1852.42,0.000275,2]
[341719988,1731127831832,-299.99,0.000275,12]
[341719989,1731127831842,-1188.1,0.000275,2]
[341719990,1731127831851,-619.66,0.000275,2]
[341719991,1731127831859,-431.22,0.00027506,2]
[341719992,1731127831868,-1500.53,0.00027506,2]
[341719993,1731127831877,-4170.43,0.00027506,10]
[341719994,1731127831886,-1121.04,0.00027506,2]
[341719995,1731127831895,-208.38,0.00027506,2]
[341719996,1731127831904,-695.93,0.00027506,2]
[341719997,1731127831913,-467.4,0.00027506,2]
[341719998,1731127831922,-510.06,0.00027506,2]
[341719999,1731127831932,-519.83,0.0002751,2]
[341720000,1731127831941,-866.13,0.00027512,2]
[341720001,1731127831950,-16728.68,0.0002753,2]
[341720002,1731127831959,-461.3,0.00027558,2]
[341720003,1731127831968,-200.0,0.00027566,2]
[341720004,1731127831976,-200.0,0.0002758,2]
[341720005,1731127831985,-250.0,0.00027587,2]
[341720006,1731127831994,-237.73,0.00027628,2]
[341720007,1731127832003,-307.84,0.00027634,2]
[341720008,1731127832012,-194.1,0.00027648,2]
[341720009,1731127832021,-1923.23,0.00027665,2]
[341720010,1731127832030,-150.0,0.00027705,7]
[341720011,1731127832039,-388.05,0.00027708,2]
[341720012,1731127832048,-615.45,0.00027906,2]
[341720013,1731127832057,-250.0,0.00027913,2]
[341720014,1731127832067,-158.38,0.00027996,30]
[341720015,1731127832076,-2883.26,0.00028029,2]
[341720016,1731127832085,-1923.23,0.00028102,2]
[341720017,1731127832093,-1923.23,0.0002854,2]
[341720018,1731127832102,-500.0,0.00028584,7]
[341720019,1731127832111,-500.0,0.00028584,7]
[341720020,1731127832120,-500.0,0.00028584,7]
[341720021,1731127832129,-2150.9,0.00028585,2]
[341720022,1731127832138,-167.27,0.00028594,2]
[341720023,1731127832147,-2150.9,0.000286,2]
[341720024,1731127832156,-2150.9,0.00028615,2]
[341720025,1731127832164,-2150.9,0.0002863,2]
[341720026,1731127832173,-2150.9,0.00028645,2]
[341720027,1731127832183,-2150.9,0.0002866,2]
[341720028,1731127832192,-2150.9,0.00028675,2]
[341720029,1731127832202,-2150.9,0.0002869,2]
[341720030,1731127832211,-2150.9,0.00028705,2]
[341720031,1731127832219,-2150.9,0.0002872,2]
[341720032,1731127832228,-24627.0,0.00028722,2]
[341720033,1731127832237,-2150.9,0.00028735,2]
[341720034,1731127832246,-2150.9,0.0002875,2]
[341720035,1731127832255,-289.95,0.00028755,10]
[341720036,1731127832264,-2150.9,0.00028765,2]
[341720037,1731127832273,-2150.9,0.0002878,2]
[341720038,1731127832282,-1603.64481135,0.00028795,2]
[341720039,1731127832294,-547.25518865,0.00028795,2]
[341720040,1731127832304,-161.737896,0.00028798,2]
[341720041,1731127832313,-2150.9,0.0002881,2]
[341720042,1731127832322,-2080.96111476,0.00028826,2]
[341720043,1731127832434,-69.93888524,0.00028826,2]
[341720044,1731127832443,-743.00754906,0.00028841,2]
[341720045,1731127832458,-517.85511205,0.00028841,2]
[341720046,1731127832468,-890.03733889,0.00028841,2]
[341720047,1731127832477,-382.99127641,0.00028856,2]
[341720048,1731127832488,-1767.90872359,0.00028856,2]
[341720049,1731127832496,-879.39490914,0.00028871,2]
[341720050,1731127832507,-1271.50509086,0.00028871,2]
[341720051,1731127832516,-166.89,0.00028871,2]
[341720052,1731127832525,-461.3,0.00028936,2]
[341720053,1731127832534,-481.79461461,0.00028977,2]
[341720054,1731127832544,-450.0,0.00028977,2]
[341720055,1731127832555,-991.43538539,0.00028977,2]
[341720056,1731127832564,-178.41,0.00029006,91]
[341720057,1731127832573,-224.81,0.00029051,2]
[341720058,1731127832582,-500.0,0.00029136,7]
[341720059,1731127832590,-512.46,0.00029136,7]
[341720060,1731127832600,-261.07649519,0.00029302,2]
[341720061,1731127832609,-500.0,0.00029406,7]
[341720062,1731127832618,-1923.23,0.00029415,2]
[341720063,1731127832627,-5291.05178189,0.000295,15]
[341720064,1731127832636,-565.48,0.0002953,3]
[341720065,1731127832645,-162.3,0.00029534,2]
[341720066,1731127832655,-611.15,0.00029534,2]
[341720067,1731127832667,-8261.59544893,0.0002954,2]
[341720068,1731127832679,-1902.05098189,0.0002954,2]
[341720075,1731127839968,-805.56057763,0.00029499,2]
[341720076,1731127840026,-422.34115079,0.00029499,2]
[341720145,1731127844935,-408.92382811,0.00029499,2]
[341720146,1731127844950,-863.17444347,0.00029499,2]
[341720147,1731127844962,-263.85046394,0.0002954,2]
[341720148,1731127844978,-1233.86,0.0002954,2]
[341720149,1731127845048,-4518.46920524,0.0002954,2]
[341720150,1731127845056,-5291.05178187,0.0002956,15]
[341720151,1731127845065,-208.12301289,0.00029573,2]
[341720153,1731127845904,-291.87698711,0.00029573,2]
[341720154,1731127845915,-52.47583838,0.00029598,5]
[341720155,1731127846160,-378.77331723,0.00029598,5]
[341720156,1731127885373,522.0,0.000209,2]
[341720157,1731127885820,496.0,0.000209,2]
[341720158,1731127887568,388.9925,0.00023155,2]
[341720159,1731127890905,151.144,0.00023155,2]
[341720160,1731127891071,500.0,0.000269,2]
[341720161,1731127937018,500.0,0.00026891,2]
[341720162,1731128040438,162.05,0.00015342,2]
[341720164,1731128103554,237.36,0.00028764,120]
[341720167,1731128243037,9145.43,0.0003,120]
[341720168,1731128266841,2371.0,0.00027,60]
[341720173,1731128722642,4028.67582553,0.0002,2]
[341720174,1731128746101,-553.9,0.00026823,2]
[341720175,1731128746122,-824.91388,0.00028061,2]
[341720176,1731128746145,-450.80152307,0.00028203,2]
[341720178,1731128831514,-424.44,0.00027728,2]
[341720179,1731128831536,-424.44,0.00028174,2]
[341720180,1731128831560,-193.9,0.00028295,120]
[341720181,1731128831580,-255.03,0.00028396,2]
[341720182,1731128831601,-1000.0,0.00028407,2]
[341720183,1731128831622,-276.78,0.00028456,2]
[341720184,1731128831643,-158.38,0.00028516,30]
[341720185,1731128831663,-152.0,0.00028537,3]
[341720186,1731128831684,-500.0,0.00028584,7]
[341720187,1731128831705,-500.0,0.00028584,7]
[341720188,1731128831726,-424.44,0.00028619,2]
[341720189,1731128831746,-3890.87841299,0.00028632,2]
[341720190,1731128946541,526.2,0.00026663,2]
[341720200,1731129032005,-500.0,0.00028,10]
[341720201,1731129032015,-358.16390953,0.00028584,7]
[341720202,1731129032042,-141.83609047,0.00028584,7]
[341720203,1731129032053,-278.91544908,0.000286,2]
[341720204,1731129032255,-450.80231563,0.000286,2]
[341720205,1731129032423,-466.28223529,0.000286,2]
[341720207,1731129032433,-250.0,0.00028605,2]
[341720209,1731129032442,-7198.26569136,0.00028632,2]
[341720211,1731129032453,-4432.86589565,0.00028632,2]
[341720213,1731129032464,-166.89,0.00028655,2]
[341720215,1731129032474,-526.2,0.00028927,2]
[341720217,1731129032484,-2500.0,0.00029,29]
[341720219,1731129032494,-424.44,0.00029065,2]
[341720221,1731129032504,-2471.86,0.00029087,2]
[341720223,1731129032514,-2000.0,0.0002928,2]
[341720225,1731129032523,-1000.0,0.000293,2]
[341720227,1731129032539,-1279.0,0.00029305,2]
[341720228,1731129032548,-1010.0,0.000294,2]
[341720229,1731129032557,-1000.0,0.000295,2]
[341720230,1731129032567,-1000.0,0.000295,2]
[341720231,1731129032576,-424.44,0.0002951,2]
[341720232,1731129032585,-11556.76478831,0.0002954,2]
[341720234,1731129032594,-356.25221518,0.00029573,5]
[341720235,1731129032603,-160.31169883,0.00029573,5]
[341720236,1731129032614,-7154.82927831,0.00029598,5]
[341720237,1731129032623,-2000.0,0.00029598,2]
[341720238,1731129032632,-200.0,0.00029598,2]
[341720239,1731129032641,-123577.5083,0.00029599,2]
[341720240,1731129032651,-2375.674,0.00029599,2]
[341720241,1731129032660,-2217.5112,0.00029599,2]
[341720242,1731129032669,-150.0,0.00029619,2]
[341720243,1731129032678,-9357.51757147,0.00029653,4]
[341720244,1731129032687,-68916.49720571,0.00029653,4]
[341720245,1731129037918,-4009.4908,0.00029653,4]
[341720246,1731129037974,-2974.4,0.00029653,4]
[341720247,1731129037986,-929.0130192,0.00029653,4]
[341720248,1731129038086,-4334.91488,0.00029653,4]
[341720249,1731129038199,-1006.82581596,0.00029653,4]
[341720250,1731129038310,-94317.31092364,0.00029653,4]
[341720251,1731129038321,-5000.0,0.00029654,2]
[341720252,1731129038330,-500.0,0.00029673,2]
[341720253,1731129038378,-226.97976737,0.00029681,2]
[341720254,1731129038389,-150.0,0.00029683,2]
[341720255,1731129038398,-7500.0,0.00029698,2]
[341720256,1731129038408,-1000.0,0.000297,2]
[341720257,1731129038419,-328.9100611,0.000297,2]
[341720258,1731129038429,-150.0,0.00029722,2]
[341720259,1731129038440,-150.0,0.00029752,2]
[341720260,1731129038449,-150.0,0.00029756,2]
[341720261,1731129038459,-150.0,0.00029777,2]
[341720262,1731129038468,-150.0,0.00029791,2]
[341720263,1731129038478,-1375.25646859,0.00029799,2]
[341720264,1731129038487,-857.619361,0.00029799,2]
[341720265,1731129038497,-63646.1724,0.000298,2]
[341720266,1731129038506,-151.0,0.000298,7]
[341720267,1731129038515,-151.0,0.000298,7]
[341720268,1731129038525,-151.0,0.000298,7]
[341720269,1731129038539,-151.0,0.000298,7]
[341720270,1731129038548,-151.0,0.000298,7]
[341720271,1731129038558,-151.0,0.000298,7]
[341720272,1731129038567,-1000.0,0.000298,2]
[341720273,1731129038576,-1000.0,0.000298,2]
[341720275,1731129038586,-274.80556168,0.000298,2]
[341720277,1731129038595,-152.0,0.00029806,4]
[341720279,1731129038603,-857.619361,0.00029812,2]
[341720281,1731129038612,-391.54,0.00029819,2]
[341720283,1731129038623,-10000.7264,0.0002982,2]
[341720284,1731129038631,-150.0,0.00029836,2]
[341720285,1731129038640,-150.0,0.00029838,2]
[341720286,1731129038649,-10000.0,0.0002984,2]
[341720287,1731129038658,-151.0,0.0002984,7]
[341720288,1731129038667,-152.784924,0.0002984,7]
[341720289,1731129038676,-151.0,0.0002984,7]
[341720290,1731129038685,-151.0,0.0002984,7]
[341720291,1731129038694,-151.0,0.0002984,7]
[341720292,1731129038703,-252.390367,0.0002984,7]
[341720293,1731129038712,-252.390367,0.0002984,7]
[341720294,1731129038722,-154.632395,0.0002984,7]
[341720295,1731129038733,-10000.0,0.0002986,2]
[341720296,1731129038743,-150.0,0.00029869,2]
[341720297,1731129038754,-502.47615105,0.00029873,5]
[341720298,1731129038763,-500.53220989,0.00029873,5]
[341720299,1731129038774,-160.18645428,0.00029873,5]
[341720300,1731129038784,-500.0,0.00029873,5]
[341720301,1731129038793,-500.0,0.00029873,5]
[341720302,1731129038802,-500.0,0.00029873,5]
[341720303,1731129038811,-276.78,0.00029879,2]
[341720304,1731129038820,-150.0,0.0002988,2]
[341720305,1731129038829,-13618.0,0.0002988,2]
[341720306,1731129038838,-4318.475,0.0002988,2]
[341720307,1731129038849,-10000.0,0.0002988,2]
[341720308,1731129038859,-249.97404408,0.00029889,2]
[341720309,1731129038868,-500.0,0.00029898,2]
[341720310,1731129038877,-500.0,0.00029898,2]
[341720311,1731129038887,-273.65949528,0.00029898,2]
[341720312,1731129038897,-887.11053758,0.00029899,2]
[341720316,1731129040036,-926.65056536,0.00029899,2]
[341720317,1731129040046,-151.0,0.00029899,7]
[341720318,1731129040055,-151.0,0.00029899,7]
[341720319,1731129040065,-151.0,0.00029899,2]
[341720320,1731129040074,-151.0,0.00029899,7]
[341720321,1731129040083,-155.243144,0.00029899,7]
[341720322,1731129040093,-151.911365,0.00029899,7]
[341720323,1731129040103,-151.0,0.00029899,7]
[341720324,1731129040112,-154.050454,0.00029899,7]
[341720325,1731129040121,-151.0,0.00029899,7]
[341720326,1731129040130,-151.0,0.00029899,7]
[341720327,1731129040139,-151.0,0.00029899,7]
[341720328,1731129040149,-151.0,0.00029899,7]
[341720329,1731129040159,-151.0,0.00029899,7]
[341720330,1731129040168,-151.0,0.00029899,7]
[341720331,1731129040177,-151.0,0.00029899,7]
[341720332,1731129040187,-151.0,0.00029899,7]
[341720333,1731129040197,-8000.0,0.00029899,2]
[341720334,1731129040207,-8000.0,0.00029899,2]
[341720335,1731129040215,-8000.0,0.00029899,2]
[341720336,1731129040225,-5682.58854075,0.00029899,2]
[341720341,1731129043007,-641.40575829,0.00029656,15]
[341720342,1731129043019,-68.99424171,0.00029656,15]
[341720343,1731129043029,-2317.41145925,0.00029899,2]
[341720344,1731129043038,-2919.3730405,0.00029899,2]
[341720345,1731129043275,-403.72850508,0.00029899,2]
[341720346,1731129043441,-4676.89845442,0.00029899,2]
[341720347,1731129043451,-343.40404604,0.00029899,2]
[341720352,1731129045908,-450.55,0.00029589,2]
[341720353,1731129045917,-7656.59595396,0.00029899,2]
[341720354,1731129045927,-151.0,0.00029899,7]
[341720355,1731129045936,-8000.0,0.00029899,2]
[341720356,1731129045946,-151.0,0.00029899,7]
[341720357,1731129045955,-8000.0,0.00029899,2]
[341720358,1731129045964,-8000.0,0.00029899,2]
[341720359,1731129045974,-8000.0,0.00029899,2]
[341720360,1731129045985,-8000.0,0.00029899,2]
[341720361,1731129045995,-8000.0,0.00029899,2]
[341720362,1731129046004,-8000.0,0.00029899,2]
[341720363,1731129046014,-8000.0,0.00029899,2]
[341720364,1731129046023,-8000.0,0.00029899,2]
[341720365,1731129046033,-8000.0,0.00029899,2]
[341720366,1731129046043,-8000.0,0.00029899,2]
[341720367,1731129046053,-8000.0,0.00029899,2]
[341720368,1731129046063,-8000.0,0.00029899,2]
[341720369,1731129046073,-5512.60465972,0.00029899,2]
[341720370,1731129046084,-151.0,0.00029899,7]
[341720371,1731129046095,-151.0,0.00029899,7]
[341720372,1731129046104,-156.179356,0.00029899,7]
[341720373,1731129046113,-202.501242,0.00029899,7]
[341720374,1731129046123,-202.501242,0.00029899,7]
[341720375,1731129046134,-202.501242,0.00029899,7]
[341720376,1731129046146,-202.501242,0.00029899,7]
[341720377,1731129046155,-151.0,0.00029899,7]
[341720378,1731129046166,-151.0,0.00029899,7]
[341720379,1731129046176,-151.0,0.00029899,7]
[341720380,1731129046186,-289.600033,0.00029899,7]
[341720381,1731129046196,-151.0,0.00029899,7]
[341720382,1731129046205,-293.4109,0.00029899,7]
[341720383,1731129046215,-151.0,0.00029899,7]
[341720384,1731129046225,-151.0,0.00029899,7]
[341720385,1731129046234,-151.0,0.00029899,7]
[341720386,1731129046244,-151.0,0.00029899,7]
[341720387,1731129046253,-206.700087,0.00029899,7]
[341720388,1731129046263,-151.0,0.00029899,7]
[341720389,1731129046273,-151.0,0.00029899,7]
[341720390,1731129046282,-151.0,0.00029899,7]
[341720391,1731129046293,-151.0,0.00029899,7]
[341720392,1731129046302,-155.615834,0.00029899,7]
[341720393,1731129046312,-151.0,0.00029899,7]
[341720394,1731129046322,-151.0,0.00029899,7]
[341720395,1731129046333,-151.0,0.00029899,7]
[341720396,1731129046343,-151.0,0.00029899,7]
[341720397,1731129046353,-151.0,0.00029899,7]
[341720398,1731129046363,-151.0,0.00029899,7]
[341720399,1731129046373,-151.0,0.00029899,7]
[341720400,1731129046383,-151.0,0.00029899,7]
[341720401,1731129046393,-198.396943,0.00029899,7]
[341720402,1731129046403,-198.396943,0.00029899,7]
[341720403,1731129046412,-151.0,0.00029899,7]
[341720404,1731129046422,-163.734326,0.00029899,7]
[341720405,1731129046431,-198.396943,0.00029899,7]
[341720406,1731129046441,-151.0,0.00029899,7]
[341720407,1731129046451,-198.396943,0.00029899,7]
[341720408,1731129046460,-217.593188,0.00029899,7]
[341720409,1731129046472,-1992.907396,0.00029899,7]
[341720410,1731129046482,-1992.907396,0.00029899,7]
[341720411,1731129046492,-1992.907396,0.00029899,7]
[341720412,1731129046502,-1992.907396,0.00029899,7]
[341720413,1731129046512,-151.0,0.00029899,7]
[341720414,1731129046522,-164.228783,0.00029899,7]
[341720415,1731129046531,-151.0,0.00029899,7]
[341720416,1731129046541,-151.0,0.00029899,7]
[341720417,1731129046554,-151.814396,0.00029899,7]
[341720418,1731129046564,-467.309159,0.00029899,7]
[341720419,1731129046573,-467.309159,0.00029899,7]
[341720420,1731129046583,-151.0,0.00029899,7]
[341720421,1731129046595,-467.309159,0.00029899,7]
[341720422,1731129046605,-151.0,0.00029899,7]
[341720423,1731129046615,-467.309159,0.00029899,7]
[341720424,1731129046624,-151.819659,0.00029899,7]
[341720425,1731129046635,-12640.21385234,0.000299,2]
[341720426,1731129046683,-105990.31302872,0.000299,2]
[341720427,1731129046733,-2605.55051413,0.000299,2]
[341720428,1731129047007,-911.14315714,0.000299,2]
[341720431,1731129435278,156.33,0.00015342,2]
[341720432,1731129482253,300.0,0.00019725,2]
[341720433,1731129541423,300.0,0.00019725,2]
[341720438,1731129661773,181.0,0.00019725,2]
[341720440,1731129879942,150.0,0.000201,2]
[341720441,1731129907773,7721.94417447,0.00016,2]
[341720442,1731129907798,4387226.21520055,0.00016,2]
[341720443,1731129931134,-1085.0,0.00021,2]
[341720444,1731129931157,-156.33,0.000221,2]
[341720445,1731129931179,-176.712,0.00023723,2]
[341720446,1731129931202,-226.02894225,0.00025,2]
[341720447,1731129931223,-2138.89059805,0.00025,2]
[341720449,1731130039098,-426.45039504,0.00025,2]
[341720450,1731130081317,150.0,0.0002,2]
[341720451,1731130081339,150.0,0.0002,2]
[341720452,1731130081361,150.0,0.0002,2]
[341720453,1731130081384,19.29812936,0.0002,2]
[341720454,1731130081417,130.70187064,0.000145,3]
[341720455,1731130081440,150.0,0.000145,3]
[341720456,1731130081462,150.0,0.000145,3]
[341720457,1731130081484,150.0,0.000145,3]
[341720458,1731130081505,150.0,0.000145,3]
[341720459,1731130081526,150.0,0.000145,3]
[341720460,1731130081547,150.0,0.000145,3]
[341720461,1731130081569,150.0,0.000145,3]
[341720462,1731130081591,150.0,0.000145,3]
[341720463,1731130081612,206297.1977565,0.000145,3]
[341720464,1731130083534,161757.9341269,0.00015,2]
[341720465,1731130087639,150.0,0.00018123,2]
[341720466,1731130098620,150.0,0.0001439,2]
[341720467,1731130098642,150.0,0.0001439,2]
[341720468,1731130098663,150.0,0.0001439,2]
[341720469,1731130098685,150.0,0.0001439,2]
[341720470,1731130098707,150.0,0.0001439,2]
[341720471,1731130098729,5.00107924,0.0001439,2]
[341720475,1731130144813,150.0,0.00015342,2]
[341720476,1731130144836,6.58,0.00015342,2]
[341720477,1731130148269,-38733.78026428,0.00025,2]
[341720478,1731130148290,-470.00253572,0.00025,2]
[341720479,1731130154123,-77.632875,0.00025,2]
[341720480,1731130154143,-432.14948639,0.000264,2]
[341720481,1731130154164,-574.76,0.00026725,2]
[341720492,1731130232115,-373.49,0.00028078,2]
[341720493,1731130232126,-216.67069176,0.00028529,2]
[341720494,1731130232288,-156.81930824,0.00028529,2]
[341720495,1731130232298,-172.32329504,0.0002861,2]
[341720496,1731130232309,-106.69670496,0.0002861,2]
[341720497,1731130232319,-193.30329504,0.00028628,2]
[341720498,1731130232330,-61.72670496,0.00028628,2]
[341720499,1731130232339,-834.79329504,0.00028628,2]
[341720500,1731130232350,-2590.26670496,0.00028628,2]
[341720501,1731130232359,-13706.11,0.00028645,2]
[341720502,1731130232368,-250.0,0.00028648,2]
[341720503,1731130232378,-532.55,0.00028663,120]
[341720504,1731130232387,-156.33,0.00028858,2]
[341720505,1731130232397,-158.38,0.00028869,30]
[341720506,1731130232406,-1000.0,0.00028935,2]
[341720507,1731130232415,-194.1,0.00028941,2]
[341720508,1731130232425,-373.49,0.00028981,2]
[341720509,1731130232434,-574.76,0.00028989,2]
[341720510,1731130232443,-110.25922932,0.00029178,2]
[341720511,1731130232462,-281.28077068,0.00029178,2]
[341720512,1731130232472,-373.49,0.00029432,2]
[341720513,1731130232481,-121.10480719,0.00029499,2]
[341720516,1731130232501,-7598.50595726,0.00029499,2]
[341720518,1731130232520,-2069.64228396,0.00029499,2]
[341720519,1731130232531,-27152.28855159,0.00029499,2]
[341720520,1731130232540,-500.0,0.000295,10]
[341720522,1731130232550,-1015.0,0.000295,3]
[341720523,1731130232559,-150.0,0.00029607,2]
[341720524,1731130232568,-150.0,0.00029608,2]
[341720525,1731130232577,-150.0,0.0002961,2]
[341720526,1731130232586,-150.0,0.0002961,2]
[341720527,1731130232595,-150.0,0.00029617,2]
[341720528,1731130232605,-150.0,0.0002963,2]
[341720529,1731130232614,-150.0,0.00029635,2]
[341720530,1731130232623,-150.0,0.00029638,2]
[341720531,1731130232632,-150.0,0.00029648,2]
[341720532,1731130232641,-212.0768296,0.00029652,2]
[341720533,1731130232650,-150.0,0.00029653,2]
[341720534,1731130232659,-150.0,0.00029657,2]
[341720535,1731130232668,-150.0,0.00029657,2]
[341720536,1731130232677,-150.0,0.00029663,2]
[341720537,1731130232686,-150.0,0.00029666,2]
[341720538,1731130232696,-150.0,0.00029672,2]
[341720539,1731130232705,-150.0,0.00029678,2]
[341720540,1731130232714,-150.0,0.00029679,2]
[341720541,1731130232724,-150.0,0.00029687,2]
[341720542,1731130232733,-150.0,0.00029688,2]
[341720543,1731130232742,-150.0,0.00029694,2]
[341720544,1731130232753,-150.0,0.00029706,2]
[341720545,1731130232762,-285.85455768,0.0002971,2]
[341720546,1731130232771,-1500.0,0.00029711,2]
[341720547,1731130232779,-150.0,0.00029715,2]
[341720548,1731130232788,-150.0,0.00029716,2]
[341720549,1731130232797,-150.0,0.00029731,2]
[341720550,1731130232807,-204.51456952,0.00029748,2]
[341720551,1731130232815,-212.0768296,0.00029755,2]
[341720552,1731130232824,-150.0,0.00029758,2]
[341720553,1731130232833,-857.619361,0.0002976,2]
[341720554,1731130232842,-150.0,0.00029773,2]
[341720555,1731130232851,-150.0,0.00029778,2]
[341720556,1731130232860,-5688.07759758,0.00029783,15]
[341720557,1731130232869,-150.0,0.00029794,2]
[341720558,1731130232878,-1500.0,0.00029803,2]
[341720559,1731130232888,-150.0,0.00029804,2]
[341720560,1731130232898,-5688.07759752,0.00029811,15]
[341720561,1731130232907,-1500.0,0.00029812,2]
[341720562,1731130232916,-10000.7264,0.0002982,2]
[341720563,1731130232926,-150.0,0.00029833,2]
[341720564,1731130232935,-150.0,0.00029833,2]
[341720565,1731130232944,-5688.07759752,0.00029839,15]
[341720566,1731130232954,-1113.22201216,0.0002984,2]
[341720567,1731130238058,-186.74,0.00028256,2]
[341720568,1731130238069,-186.74,0.0002871,2]
[341720569,1731130238078,-186.74,0.00029164,2]
[341720570,1731130238088,-186.74,0.00029618,2]
[341720571,1731130238098,-255.14843179,0.0002984,2]
[341720572,1731130238110,-313.34236048,0.0002984,2]
[341720573,1731130238122,-566.76354058,0.0002984,2]
[341720574,1731130238133,-7751.52365499,0.0002984,2]
[341720575,1731130238143,-150.0,0.00029841,2]
[341720576,1731130238152,-150.0,0.0002985,2]
[341720577,1731130238161,-150.0,0.00029856,2]
[341720578,1731130238171,-1075.8463408,0.00029859,2]
[341720579,1731130238180,-5260.5085333,0.0002986,2]
[341720580,1731130238191,-4392.91305409,0.0002986,2]
[341720581,1731130238202,-346.57841261,0.0002986,2]
[341720582,1731130238211,-150.0,0.00029861,2]
[341720583,1731130238220,-86.80832128,0.00029865,2]
[341720584,1731130238263,-63.19167872,0.00029865,2]
[341720585,1731130238273,-629.74763115,0.00029867,15]
[341720586,1731130238297,-4461.84790807,0.00029867,15]
[341720587,1731130238310,-596.4820583,0.00029867,15]
[341720588,1731130238319,-150.0,0.00029869,2]
[341720589,1731130238329,-226.97976737,0.0002987,2]
[341720590,1731130238339,-150.0,0.00029871,2]
[341720591,1731130238350,-212.0768296,0.00029872,2]
[341720592,1731130238361,-150.0,0.00029873,2]
[341720593,1731130238369,-150.0,0.00029873,2]
[341720594,1731130238379,-150.0,0.00029878,2]
[341720595,1731130238389,-3747.81565699,0.0002988,2]
[341720597,1731130238585,-264.24,0.0002988,2]
[341720598,1731130238595,-478.31959918,0.0002988,2]
[341720599,1731130238607,-5509.62474383,0.0002988,2]
[341720601,1731130238616,-3945.9583303,0.0002988,2]
[341720602,1731130238633,-6214.9253682,0.0002988,2]
[341720603,1731130238652,-540.65357155,0.0002988,2]
[341720604,1731130238663,-1698.02186945,0.0002988,2]
[341720605,1731130238674,-721.52433466,0.0002988,2]
[341720606,1731130238684,-1016.61,0.0002988,2]
[341720607,1731130238696,-1715.6453042,0.0002988,2]
[341720608,1731130238707,-880.79184,0.0002988,2]
[341720609,1731130238718,-358.33485164,0.0002988,2]
[341720610,1731130238739,-37620.86537848,0.0002988,2]
[341720611,1731130238750,-305.85800046,0.00029895,2]
[341720612,1731130238758,-5688.07759752,0.00029895,15]
[341720613,1731130238768,-150.0,0.00029896,2]
[341720614,1731130238777,-7500.0,0.00029899,2]
[341720615,1731130238786,-1813.76110294,0.00029899,2]
[341720616,1731130238795,-63646.1724,0.000299,2]
[341720617,1731130238804,-857.619361,0.000299,2]
[341720618,1731130238814,-31019.41020093,0.000299,2]
[341720619,1731130238823,-1586.38478843,0.000299,10]
[341720620,1731130238832,-500.0,0.000299,2]
[341720621,1731130238841,-500.0,0.000299,2]
[341720622,1731130238850,-301.99237804,0.000299,2]
[341720623,1731130238859,-2190.03443353,0.000299,2]
[341720624,1731130238868,-193.0,0.000299,14]
[341720625,1731130238877,-155.45469241,0.000299,2]
[341720626,1731130238885,-267.56738571,0.000299,2]
[341720627,1731130238895,-200.0,0.000299,2]